bitfinex-derivatives/quotes_ETHF0:USTF0_20250210
["timestamp","ask_amount","ask_price","bid_price","bid_amount"]
[1739164087053,4.37543561,2622.8,2622.4,41.9906]
[1739164087753,3.2078,2622.9,2622.6,1.86963609]
[1739164087949,0.5547,2623.1,2622.6,1.86963609]
[1739164088850,0.5547,2623.1,2622.4,43.86023609]
[1739164089151,3.2078,2623.2,2622.6,1.86963609]
[1739164089350,3.2078,2623.2,2622.8,1.86963609]
[1739164089548,3.2078,2623.2,2622.9,0.5873]
[1739164089749,3.2078,2623.2,2623.0,1.86963609]
[1739164089952,3.2078,2623.2,2623.1,0.5627]
[1739164090455,3.2078,2623.2,2623.1,41.3627]
[1739164092356,0.00571363,2623.5,2623.1,41.3627]
[1739164092756,7.57569013,2623.4,2623.1,41.3627]
[1739164093158,3.2078,2623.4,2623.1,41.3627]
[1739164093355,3.2078,2623.4,2623.1,0.5627]
[1739164093658,3.21351363,2623.5,2623.1,2.43233609]
[1739164094056,3.96448141,2623.4,2623.1,2.43233609]
[1739164094555,3.21351363,2623.5,2623.3,1.86963609]
[1739164094752,3.21351363,2623.5,2623.1,3.7705]
[1739164094753,3.21351363,2623.5,2623.1,2.43233609]
[1739164094957,4.19852672,2623.4,2623.1,2.43233609]
[1739164095157,4.19852672,2623.4,2623.1,0.5627]
[1739164095357,3.21351363,2623.5,2623.1,0.5627]
[1739164096460,3.21351363,2623.5,2623.1,2.43233609]
[1739164096656,0.00571363,2623.5,2623.1,2.43233609]
[1739164097553,3.21351363,2623.5,2623.1,0.5627]
[1739164097753,4.19369516,2623.4,2623.1,0.5627]
[1739164100563,3.2078,2623.2,2622.8,1.86963609]
[1739164100754,3.2078,2623.2,2622.6,1.712]
[1739164102056,3.2078,2623.2,2622.8,1.86963609]
[1739164102761,0.00571363,2623.5,2623.1,1.86963609]
[1739164102961,0.00571363,2623.5,2623.2,1.1675]
[1739164105856,4.20656301,2623.4,2622.8,1.86963609]
[1739164106163,0.00571363,2623.5,2623.0,1.86963609]
[1739164108067,4.19441079,2623.4,2623.0,1.86963609]
[1739164108965,0.00571363,2623.5,2623.0,1.86963609]
[1739164110167,3.9860419,2623.4,2622.7,1.1767]
[1739164110564,3.9860419,2623.4,2622.8,1.86963609]
[1739164110565,3.2078,2623.3,2622.8,1.86963609]
[1739164111564,3.2078,2623.3,2622.7,1.1767]
[1739164111764,0.6093,2623.2,2622.7,1.1767]
[1739164112972,3.2078,2623.3,2622.7,1.1767]
[1739164113265,0.00571363,2623.5,2623.2,1.86963609]
[1739164113572,0.00571363,2623.5,2623.3,1.1991]
[1739164114574,0.00571363,2623.5,2623.0,1.86963609]
[1739164114869,4.40709408,2623.4,2623.0,1.86963609]
[1739164115072,0.61951363,2623.5,2623.0,1.86963609]
[1739164115867,3.2078,2623.3,2623.0,1.86963609]
[1739164117371,3.2078,2623.3,2622.7,1.1527]
[1739164117674,3.2078,2623.0,2622.7,1.1527]
[1739164119275,1.37702752,2623.2,2622.7,1.1527]
[1739164119768,1.37702752,2623.2,2622.8,1.86963609]
[1739164119968,0.5953,2623.2,2622.8,1.86963609]
[1739164120174,3.2078,2623.3,2622.8,1.86963609]
[1739164120371,3.2078,2623.3,2622.8,2.45403609]
[1739164121970,1.22481363,2623.5,2622.8,2.45403609]
[1739164122170,3.2078,2623.4,2622.8,1.86963609]
[1739164122378,0.19386287,2623.3,2622.7,1.1527]
[1739164122674,3.2078,2623.1,2622.7,1.1527]
[1739164126974,0.5552,2623.0,2622.7,1.1527]
[1739164127373,3.2078,2623.1,2622.7,1.1527]
[1739164127980,0.19386287,2623.3,2622.9,1.86963609]
[1739164128169,0.5552,2623.4,2622.9,1.86963609]
[1739164132485,0.00571363,2623.5,2623.2,1.86963609]
[1739164132781,0.00571363,2623.5,2623.3,1.1717]
[1739164132986,0.00571363,2623.5,2623.4,1.86963609]
[1739164134883,0.00571363,2623.5,2623.4,5.07743609]
[1739164135479,0.00571363,2623.5,2623.4,11.07743609]
[1739164135679,3.2078,2623.8,2623.4,5.07743609]
[1739164135882,3.2078,2623.8,2623.6,1.86963609]
[1739164136189,3.2078,2623.8,2623.7,40.8]
[1739164137396,0.00571363,2624.0,2623.7,40.8]
[1739164137583,0.00571363,2624.0,2623.9,1.86963609]
[1739164137887,0.5658,2624.4,2623.9,5.07743609]
[1739164138087,0.5658,2624.4,2624.2,1.86963609]
[1739164139391,0.5658,2624.4,2624.0,1.86963609]
[1739164140891,0.00571363,2624.6,2624.2,1.86963609]
[1739164141188,0.00571363,2624.6,2624.4,1.86963609]
[1739164141387,0.00571363,2624.6,2624.5,0.5543]
[1739164144089,0.00571363,2624.6,2624.4,1.86963609]
[1739164146389,0.00571363,2624.6,2624.5,3.2078]
[1739164146587,1.1547,2625.4,2624.5,3.2078]
[1739164146785,1.1547,2625.4,2624.9,1.86963609]
[1739164146990,5.26181009,2625.4,2624.9,1.86963609]
[1739164147189,3.2078,2625.3,2624.9,1.86963609]
[1739164147394,3.2078,2625.3,2625.0,0.5764]
[1739164147594,1.1547,2625.4,2625.1,1.86963609]
[1739164147798,0.00571363,2625.4,2625.3,1.86963609]
[1739164153401,0.5747,2626.0,2625.3,7.86963609]
[1739164153603,0.5747,2626.0,2625.5,5.07743609]
[1739164154606,0.58041363,2626.0,2625.6,0.6016]
[1739164155006,0.58041363,2626.0,2625.7,1.86963609]
[1739164156504,0.00571363,2626.0,2625.9,2.63116609]
[1739164156806,0.5793,2626.5,2625.9,7.86963609]
[1739164157008,0.5793,2626.5,2625.7,1.2106]
[1739164157009,0.6045,2626.7,2626.4,5.07743609]
[1739164157213,0.5765,2626.8,2626.6,1.86963609]
[1739164157709,0.6045,2627.3,2626.6,1.86963609]
[1739164157710,3.8123,2627.3,2626.6,1.86963609]
[1739164157904,0.5793,2627.3,2627.2,3.2078]
[1739164158111,0.5609,2627.7,2627.2,3.2078]
[1739164158410,0.5609,2627.7,2627.4,1.86963609]
[1739164158617,0.00571363,2627.7,2627.6,1.86963609]
[1739164161115,0.00571363,2627.7,2627.2,5.07743609]
[1739164161407,3.2078,2627.6,2627.0,1.86963609]
[1739164161614,3.2078,2627.3,2627.0,1.86963609]
[1739164161810,1.1958,2627.5,2627.0,1.86963609]
[1739164163506,3.2078,2627.2,2626.8,1.86963609]
[1739164163705,3.2078,2627.2,2626.6,1.86963609]
[1739164164411,3.2078,2627.2,2627.0,1.86963609]
[1739164164612,7.3176,2627.5,2627.0,1.86963609]
[1739164164813,7.3176,2627.5,2627.2,1.86963609]
[1739164165116,4.4036,2627.5,2627.2,1.86963609]
[1739164165505,3.8169,2627.5,2627.4,1.86963609]
[1739164166205,3.2078,2627.5,2627.4,1.86963609]
[1739164166414,3.2078,2627.5,2627.4,42.66963609]
[1739164167308,3.7849,2627.5,2627.2,1.86963609]
[1739164167507,3.7849,2627.5,2627.0,1.86963609]
[1739164167818,3.7849,2627.5,2627.0,2.52502527]
[1739164168219,3.2078,2627.2,2627.0,2.52502527]
[1739164168811,0.5771,2627.5,2627.0,2.52502527]
[1739164168812,3.7849,2627.5,2627.0,2.52502527]
[1739164169511,0.6055,2627.4,2627.0,2.52502527]
[1739164169716,0.6055,2627.4,2626.6,40.8]
[1739164169717,3.2078,2627.2,2626.7,2.52502527]
[1739164171818,0.6055,2627.4,2626.7,2.52502527]
[1739164174314,0.6055,2627.4,2627.0,2.52502527]
[1739164174713,0.00402238,2627.6,2627.3,2.52502527]
[1739164174918,3.8104,2628.3,2627.5,3.2078]
[1739164175115,3.8104,2628.3,2627.8,2.52502527]
[1739164175421,3.8104,2628.3,2628.1,2.52502527]
[1739164175620,3.2078,2628.3,2628.1,2.52502527]
[1739164176314,3.2078,2628.3,2628.2,40.8]
[1739164179820,0.58768249,2628.5,2628.2,40.8]
[1739164179821,0.00378249,2628.5,2628.2,40.8]
[1739164181528,0.00378249,2628.5,2628.1,3.11912527]
[1739164183829,0.00378249,2628.5,2628.1,2.52502527]
[1739164184023,0.00378249,2628.5,2628.1,3.11832527]
[1739164184728,0.00378249,2628.5,2628.4,2.52502527]
[1739164185424,3.2078,2628.9,2628.4,5.73282527]
[1739164185633,3.2078,2628.9,2628.8,2.52502527]
[1739164188222,0.5873,2629.3,2628.8,2.52502527]
[1739164188426,5.874,2630.2,2629.2,2.52502527]
[1739164188727,8.36648845,2630.2,2629.7,2.52502527]
[1739164188933,3.2078,2629.9,2629.4,2.5307389]
[1739164189130,8.97018845,2630.2,2629.4,2.5307389]
[1739164189432,8.97018845,2630.2,2629.7,2.52502527]
[1739164189433,4.9597,2630.2,2629.7,2.52502527]
[1739164189931,4.9597,2630.2,2629.4,2.5307389]
[1739164190127,3.95612128,2630.1,2629.4,2.5307389]
[1739164190328,4.9597,2630.2,2629.4,2.5307389]
[1739164190533,3.2078,2629.9,2629.5,40.8]
[1739164190733,4.07661002,2630.1,2629.5,40.8]
[1739164190935,4.9597,2630.2,2629.5,40.8]
[1739164191226,4.07661002,2630.1,2629.5,40.8]
[1739164192232,4.07661002,2630.1,2629.4,2.5307389]
[1739164193834,4.356,2630.2,2629.7,2.52502527]
[1739164194331,4.356,2630.2,2629.4,2.5307389]
[1739164194631,3.2078,2629.9,2629.4,0.00571363]
[1739164194828,3.2078,2629.9,2629.4,2.5307389]
[1739164195736,3.2078,2629.9,2629.4,1.86752029]
[1739164198642,1.1482,2630.2,2629.6,3.72361332]
[1739164198936,3.2078,2630.8,2630.1,5.06960666]
[1739164199140,3.8107,2630.8,2630.5,1.86180666]
[1739164199441,3.8107,2630.8,2630.1,5.06960666]
[1739164199729,3.8107,2630.8,2630.3,1.86180666]
[1739164199935,3.8107,2630.8,2630.5,1.86180666]
[1739164200341,3.2078,2630.8,2630.7,1.86180666]
[1739164201134,3.2078,2630.8,2630.5,2.45290666]
[1739164201331,3.2078,2630.8,2630.5,1.86180666]
[1739164201737,3.2078,2630.8,2630.7,2.51848431]
[1739164202828,0.5768,2630.9,2630.7,2.51848431]
[1739164203031,0.5768,2630.9,2630.4,46.52628431]
[1739164203236,0.5768,2630.9,2630.7,2.51848431]
[1739164204441,3.7919,2631.2,2630.7,2.51848431]
[1739164205039,3.2078,2631.2,2630.7,2.51848431]
[1739164205536,3.8017,2631.6,2631.0,2.51848431]
[1739164205735,3.2078,2631.6,2631.3,2.51848431]
[1739164206535,3.2078,2631.6,2631.0,3.65828654]
[1739164206839,3.2078,2631.6,2631.0,44.45828654]
[1739164207640,3.2078,2631.3,2631.0,0.00570223]
[1739164208141,1.128,2631.2,2631.0,0.00570223]
[1739164208339,0.5786,2631.1,2631.0,0.00570223]
[1739164208536,0.5786,2631.1,2630.4,3.07568431]
[1739164208738,3.2078,2630.6,2630.1,2.51848431]
[1739164208937,3.2078,2630.3,2629.8,6.86818431]
[1739164209341,1.7066,2630.5,2630.1,2.51848431]
[1739164209539,1.1355,2630.5,2630.1,2.51848431]
[1739164210242,3.21346422,2630.6,2630.4,2.51848431]
[1739164210444,0.00566422,2630.6,2630.4,2.51848431]
[1739164210643,0.5786,2631.2,2630.5,4.3497]
[1739164210945,0.613,2631.5,2630.9,2.51848431]
[1739164211143,0.613,2631.5,2631.2,2.51848431]
[1739164211542,3.7966,2631.6,2631.2,2.51848431]
[1739164211743,3.2078,2631.6,2631.5,2.51848431]
[1739164213541,3.2078,2632.0,2631.5,2.51848431]
[1739164213941,3.2078,2632.0,2631.8,2.51848431]
[1739164215340,3.2078,2632.3,2631.8,2.51848431]
[1739164215546,0.562,2632.6,2632.2,2.51848431]
[1739164215749,0.18551901,2632.8,2632.5,2.51848431]
[1739164216948,3.39331901,2632.8,2632.2,3.12418431]
[1739164217146,0.577,2632.7,2632.2,2.51848431]
[1739164217348,0.577,2632.7,2631.9,2.51848431]
[1739164217349,3.2078,2632.4,2631.9,2.51848431]
[1739164218345,3.2078,2632.4,2631.6,2.51848431]
[1739164218559,3.2078,2632.0,2631.6,2.51848431]
[1739164218850,3.2078,2632.5,2631.9,2.51848431]
[1739164219148,3.2078,2632.5,2632.2,2.51848431]
[1739164219351,3.2078,2632.5,2632.3,0.5689]
[1739164219552,3.2078,2632.5,2632.3,1.1447]
[1739164221351,3.2078,2632.5,2632.2,2.51848431]
[1739164222360,0.577,2632.9,2632.2,5.72628431]
[1739164222553,0.577,2632.9,2632.7,2.51848431]
[1739164222746,3.2078,2633.1,2632.7,2.51848431]
[1739164225751,3.2078,2633.1,2633.0,2.51848431]
[1739164225956,2.914,2634.0,2633.0,2.51848431]
[1739164225957,3.2078,2633.6,2633.0,2.51848431]
[1739164226148,3.7804,2633.9,2633.5,2.51848431]
[1739164226956,3.7804,2633.9,2633.2,2.51848431]
[1739164227454,0.5726,2633.9,2633.5,2.51848431]
[1739164227660,0.5726,2633.9,2633.8,2.51848431]
[1739164229157,3.2078,2634.5,2633.8,5.72628431]
[1739164229354,3.2078,2634.5,2634.3,2.51848431]
[1739164229555,3.2078,2634.5,2634.0,2.51848431]
[1739164229860,3.2078,2634.2,2634.0,2.51848431]
[1739164230363,0.5615,2634.1,2633.7,2.51848431]
[1739164230556,3.2078,2633.9,2633.7,2.51848431]
[1739164232964,0.74927327,2634.1,2633.7,2.51848431]
[1739164234561,0.74927327,2634.1,2634.0,2.51848431]
[1739164234761,0.5615,2634.1,2634.0,2.51848431]
[1739164234960,0.5948,2634.5,2634.0,2.51848431]
[1739164235161,3.2078,2634.3,2634.0,2.5127202]
[1739164236761,3.2078,2634.3,2633.7,2.51848431]
[1739164236969,3.2078,2634.0,2633.7,2.51848431]
[1739164237462,0.6095,2633.9,2633.7,2.51848431]
[1739164240459,3.2078,2634.0,2633.7,2.51848431]
[1739164241273,0.5599,2634.4,2633.9,3.2078]
[1739164241467,3.2078,2634.5,2634.1,2.51848431]
[1739164241663,0.6114,2634.9,2634.4,2.51848431]
[1739164241871,0.6114,2634.9,2634.8,2.51848431]
[1739164243467,0.6114,2634.9,2634.5,2.51848431]
[1739164244170,0.6114,2634.9,2634.8,2.51848431]
[1739164244871,3.39929444,2635.0,2634.8,2.51848431]
[1739164245080,3.2078,2635.0,2634.8,2.51848431]
[1739164246570,3.2078,2635.3,2634.8,2.51848431]
[1739164246767,3.2078,2635.3,2635.2,2.51848431]
[1739164248075,3.2078,2635.3,2634.9,2.51848431]
[1739164248475,3.2078,2635.0,2634.9,2.51848431]
[1739164248679,3.2078,2635.0,2634.6,2.51848431]
[1739164248869,0.6038,2634.9,2634.6,2.51848431]
[1739164249776,3.2078,2634.7,2634.6,2.51848431]
[1739164249976,3.2078,2634.7,2634.3,2.51848431]
[1739164250780,4.08053515,2634.6,2634.0,43.31848431]
[1739164253577,4.08053515,2634.6,2634.0,2.51848431]
[1739164255582,10.08053515,2634.6,2633.7,43.31848431]
[1739164256090,3.2078,2634.0,2633.7,43.31848431]
[1739164256886,3.2078,2634.0,2633.7,2.51848431]
[1739164258092,0.00570223,2634.1,2633.7,2.51848431]
[1739164258692,3.2078,2634.0,2633.7,2.51848431]
[1739164259085,3.39370514,2634.0,2633.7,2.51848431]
[1739164262593,0.18590514,2634.0,2633.7,2.51848431]
[1739164262789,0.00570223,2634.1,2633.9,3.96706]
[1739164262992,4.3693,2634.9,2634.0,2.51848431]
[1739164263195,3.8099,2634.9,2634.5,2.51848431]
[1739164263392,3.8099,2634.9,2634.8,2.51848431]
[1739164264101,3.8099,2634.9,2634.6,40.8]
[1739164264292,3.8099,2634.9,2634.3,0.6094]
[1739164264498,7.87791015,2634.9,2634.3,0.6094]
[1739164264691,0.5559,2634.8,2634.3,0.6094]
[1739164264989,3.2078,2634.6,2634.2,2.51848431]
[1739164265294,3.2078,2634.3,2634.2,2.51848431]
[1739164266790,3.2078,2634.3,2633.9,2.51848431]
[1739164266991,3.2078,2634.0,2633.9,2.51848431]
[1739164269398,10.9428,2634.0,2633.6,0.00570223]
[1739164269606,5.72628431,2633.7,2632.4,2.51848431]
[1739164269902,3.2078,2632.8,2632.4,2.51848431]
[1739164270597,3.2078,2633.1,2632.7,2.51848431]
[1739164270795,0.00570223,2632.9,2632.7,2.51848431]
[1739164271805,0.00570223,2632.9,2632.8,0.5587]
[1739164272097,3.40203946,2633.7,2632.8,3.7665]
[1739164272301,3.2078,2634.0,2633.6,2.51848431]
[1739164272493,4.9528,2634.3,2633.6,2.51848431]
[1739164272894,3.2078,2633.9,2633.6,2.51848431]
[1739164273090,4.9528,2634.3,2633.6,2.51848431]
[1739164273504,3.2078,2634.0,2633.6,2.51848431]
[1739164274103,4.35880429,2633.9,2633.5,0.56440223]
[1739164274300,4.93590429,2633.9,2633.5,0.56440223]
[1739164274597,3.2078,2633.7,2633.5,0.00570223]
[1739164276907,3.2078,2634.0,2633.6,2.51848431]
[1739164277206,3.2078,2634.0,2633.7,1.1527]
[1739164277401,3.2078,2634.0,2633.8,40.8]
[1739164277600,3.2078,2634.3,2633.8,40.8]
[1739164278104,3.2078,2634.3,2633.7,1.1527]
[1739164278906,0.5926,2634.4,2633.9,2.51848431]
[1739164280107,3.2078,2634.3,2633.9,2.51848431]
[1739164280700,3.2078,2634.0,2633.5,0.00570223]
[1739164281002,3.2078,2633.7,2633.5,0.00570223]
[1739164287614,3.2078,2633.7,2633.6,2.51848431]
[1739164287813,0.19329,2634.2,2633.7,0.75932]
[1739164287814,3.97329,2634.2,2633.7,0.75932]
[1739164288015,3.97329,2634.2,2634.0,2.51848431]
[1739164288216,0.76549,2634.2,2634.0,2.51848431]
[1739164288519,3.2078,2634.5,2634.0,2.51848431]
[1739164288812,3.2078,2634.5,2634.3,2.51848431]
[1739164290913,3.2078,2634.8,2634.3,2.51848431]
[1739164291709,4.33604999,2634.7,2634.0,2.51848431]
[1739164292323,4.33604999,2634.7,2634.3,2.51848431]
[1739164292815,3.2078,2634.8,2634.6,2.51848431]
[1739164293918,3.2078,2634.8,2634.3,2.51848431]
[1739164296126,3.2078,2634.8,2634.4,0.6014]
[1739164297620,3.2078,2634.8,2634.6,2.51848431]
[1739164298923,0.5722,2635.0,2634.7,0.75905]
[1739164299122,0.5722,2635.0,2634.9,2.51848431]
[1739164299726,3.2078,2635.1,2634.9,2.51848431]
[1739164301125,3.2078,2635.1,2635.0,0.5942]
[1739164302326,3.2078,2635.1,2634.9,2.51848431]
[1739164302932,3.2078,2635.1,2634.6,3.11548431]
[1739164303133,0.5822,2635.0,2634.6,3.11548431]
[1739164304029,0.5822,2635.0,2634.6,2.51848431]
[1739164304331,4.3461,2635.0,2634.5,0.5599]
[1739164307330,4.3461,2635.0,2634.3,2.51848431]
[1739164307527,0.5856,2634.9,2634.3,2.51848431]
[1739164307736,3.2078,2634.7,2634.3,2.51848431]
[1739164309533,0.5856,2634.9,2634.3,2.51848431]
[1739164309839,0.5856,2634.9,2634.2,0.597]
[1739164309840,0.5856,2634.9,2634.6,2.51848431]
[1739164311534,3.79,2635.0,2634.6,2.51848431]
[1739164311835,3.79,2635.0,2634.9,2.51848431]
[1739164312226,3.79,2635.0,2634.7,1.1459]
[1739164314038,3.79,2635.0,2634.6,2.51848431]
[1739164315534,3.79,2635.0,2634.6,5.72628431]
[1739164315738,0.5822,2635.0,2634.6,2.51848431]
[1739164315941,0.5822,2635.0,2634.6,5.72628431]
[1739164317837,0.5822,2635.0,2634.9,2.51848431]
[1739164318135,3.39372335,2635.3,2634.9,2.51848431]
[1739164318343,3.2078,2635.3,2635.2,2.51848431]
[1739164318835,3.2078,2635.3,2635.2,43.31848431]
[1739164319341,3.7932,2635.8,2635.2,43.31848431]
[1739164319636,4.15938945,2635.7,2635.2,43.31848431]
[1739164320242,3.7932,2635.8,2635.2,43.31848431]
[1739164320438,3.2078,2635.5,2635.2,43.31848431]
[1739164320641,3.2078,2635.5,2635.2,2.51848431]
[1739164320943,3.2078,2635.5,2635.0,1.1896]
[1739164321135,3.2078,2635.5,2635.2,2.51848431]
[1739164321331,0.6058,2635.7,2635.2,2.51848431]
[1739164321536,3.7932,2635.8,2635.5,2.51848431]
[1739164322740,3.7932,2635.8,2635.6,1.1589]
[1739164323039,3.2078,2635.8,2635.6,1.1589]
[1739164323743,3.2078,2635.8,2635.7,1.85290467]
[1739164324140,3.2078,2635.8,2635.5,1.85290467]
[1739164324937,3.2078,2635.8,2635.2,0.5617]
[1739164325135,3.2078,2635.5,2635.2,0.5617]
[1739164325332,0.5778,2635.4,2635.2,0.5617]
[1739164325538,0.5778,2635.4,2635.3,1.85290467]
[1739164325740,0.5778,2635.4,2635.2,2.50957292]
[1739164326338,3.2078,2635.6,2635.2,2.50957292]
[1739164326642,0.5696,2635.8,2635.5,2.50957292]
[1739164328036,0.5696,2635.8,2635.2,2.50957292]
[1739164328238,3.2078,2635.6,2635.2,2.50957292]
[1739164328440,0.5585,2635.5,2635.2,2.50957292]
[1739164329944,3.2078,2635.3,2634.9,2.50957292]
[1739164330241,0.6114,2635.2,2634.9,2.50957292]
[1739164330547,1.1833,2635.2,2634.9,2.50957292]
[1739164333550,0.5719,2635.2,2634.9,2.50957292]
[1739164333747,0.5585,2635.5,2634.9,2.50957292]
[1739164333942,1.1489,2635.5,2635.2,2.50957292]
[1739164334142,0.5904,2635.5,2635.2,2.50957292]
[1739164334647,3.2078,2635.6,2635.2,2.50957292]
[1739164334854,3.2078,2635.6,2635.3,0.6074]
[1739164335043,3.2078,2635.6,2635.4,40.8]
[1739164335240,3.2078,2635.6,2635.5,2.50957292]
[1739164335438,0.5868,2635.8,2635.5,2.50957292]
[1739164336547,0.5904,2635.9,2635.5,2.50957292]
[1739164338351,3.2078,2635.7,2635.2,2.50957292]
[1739164339353,3.2078,2635.7,2635.5,2.50957292]
[1739164339854,0.5904,2635.9,2635.5,2.50957292]
[1739164340151,0.5904,2635.9,2635.2,2.50957292]
[1739164340348,3.2078,2635.7,2635.2,2.50957292]
[1739164342053,0.5904,2635.9,2635.2,2.50957292]
[1739164342456,0.5904,2635.9,2635.5,2.50957292]
[1739164344053,0.5904,2635.9,2635.6,1.1639]
[1739164344861,0.6007,2636.1,2635.8,2.50957292]
[1739164345257,3.2078,2636.3,2635.8,2.50957292]
[1739164345460,3.2078,2636.3,2636.1,2.50957292]
[1739164345764,3.2078,2636.3,2636.1,1.85261893]
[1739164347052,3.7769,2636.6,2636.1,1.85261893]
[1739164347261,3.2078,2636.6,2636.5,1.85261893]
[1739164348861,3.2078,2636.9,2636.5,1.85261893]
[1739164349053,3.2078,2636.9,2636.8,1.85261893]
[1739164349273,3.2078,2637.4,2636.8,6.91303786]
[1739164349567,3.2078,2637.4,2637.2,1.85261893]
[1739164350355,3.2078,2638.4,2637.6,0.7582]
[1739164350557,19.1553224,2638.7,2637.6,0.7582]
[1739164350558,22.3631224,2638.7,2638.3,1.85261893]
[1739164350756,22.3631224,2638.7,2637.7,0.6192912]
[1739164351060,19.1553224,2638.7,2638.4,1.85261893]
[1739164351266,3.2078,2638.5,2638.4,1.85261893]
[1739164351861,3.2078,2638.5,2638.2,1.85261893]
[1739164352962,3.2078,2638.5,2638.4,1.85261893]
[1739164353972,3.2078,2638.5,2638.2,1.85261893]
[1739164355065,4.25197898,2638.4,2638.0,1.85261893]
[1739164355864,3.2078,2638.2,2638.0,1.85261893]
[1739164356165,0.5879,2638.1,2638.0,1.85261893]
[1739164356370,1.1821,2638.1,2638.0,1.85261893]
[1739164356669,0.5942,2638.1,2638.0,1.85261893]
[1739164357065,4.93997343,2638.1,2637.7,0.0056912]
[1739164357269,3.2078,2637.9,2637.7,0.0056912]
[1739164357964,0.6121,2638.0,2637.7,0.0056912]
[1739164358266,0.18930987,2638.4,2637.9,1.85261893]
[1739164358472,1.2128,2638.3,2637.9,1.85261893]
[1739164358968,3.7873,2638.5,2637.9,1.85261893]
[1739164358969,3.2078,2638.5,2638.2,1.85261893]
[1739164359269,0.6121,2638.8,2638.4,3.70523786]
[1739164359459,3.2078,2638.9,2638.7,1.85261893]
[1739164359665,3.2078,2639.2,2638.7,1.85261893]
[1739164359860,3.2078,2639.2,2638.9,1.85261893]
[1739164360069,3.2078,2639.2,2639.1,1.85261893]
[1739164360273,3.2078,2639.2,2638.9,1.85261893]
[1739164362471,3.2078,2639.2,2638.7,1.85261893]
[1739164363074,4.24214308,2639.1,2638.7,1.85261893]
[1739164363264,3.2078,2639.2,2638.9,1.85261893]
[1739164363469,3.2078,2639.2,2639.1,1.85261893]
[1739164364271,3.2078,2639.2,2638.9,1.85261893]
[1739164365381,3.2078,2639.2,2638.7,1.85261893]
[1739164365578,3.2078,2638.9,2638.7,1.85261893]
[1739164365873,3.2078,2638.9,2638.5,1.85261893]
[1739164366079,0.5555,2638.8,2638.5,1.85261893]
[1739164366281,3.2078,2638.9,2638.5,1.85261893]
[1739164367182,3.7633,2639.2,2638.8,1.85261893]
[1739164367971,3.2078,2638.9,2638.5,1.85261893]
[1739164371076,0.6009,2639.1,2638.8,1.85261893]
[1739164371681,3.2078,2638.9,2638.8,1.85261893]
[1739164371881,3.2078,2638.9,2638.5,1.85261893]
[1739164372595,0.5992,2638.8,2638.5,1.85261893]
[1739164372791,3.2078,2638.6,2638.5,1.85261893]
[1739164374000,3.2078,2638.6,2638.2,1.85261893]
[1739164374195,3.2078,2638.3,2638.2,1.85261893]
[1739164374393,3.2078,2638.3,2637.9,1.85261893]
[1739164375297,3.2078,2638.3,2638.2,1.85261893]
[1739164376401,3.2078,2638.7,2638.2,1.85261893]
[1739164376600,3.2078,2638.7,2638.5,1.85261893]
[1739164377303,1.1717,2639.0,2638.5,1.85261893]
[1739164377491,0.6032,2639.0,2638.8,1.85261893]
[1739164378896,3.2078,2639.1,2638.8,1.85261893]
[1739164379401,3.7906,2639.4,2639.0,1.85261893]
[1739164379606,3.7906,2639.4,2639.3,1.85261893]
[1739164379804,3.7906,2639.4,2639.1,1.85261893]
[1739164380206,3.2078,2639.4,2639.1,1.85261893]
[1739164380394,3.2078,2639.4,2639.2,3.05001893]
[1739164380901,3.2078,2639.4,2639.3,1.85261893]
[1739164382102,3.2078,2639.4,2639.0,1.85831013]
[1739164382402,3.2078,2639.4,2639.3,1.85261893]
[1739164383105,3.2078,2639.4,2639.3,0.6004]
[1739164383696,3.2078,2639.4,2639.2,1.85261893]
[1739164384104,0.0049865,2639.3,2639.2,1.85261893]
[1739164386907,0.0049865,2639.3,2639.0,0.0056912]
[1739164387206,3.2078,2639.1,2639.0,0.0056912]
[1739164388711,7.50662083,2639.1,2638.6,1.85261893]
[1739164388912,3.2078,2638.7,2638.6,1.85261893]
[1739164390115,3.2078,2638.7,2638.4,0.5606912]
[1739164390315,0.6038,2638.6,2638.4,0.0056912]
[1739164390517,1.1922,2638.6,2638.4,0.0056912]
[1739164390817,1.7782,2638.6,2638.4,0.0056912]
[1739164392513,1.1922,2638.6,2638.4,0.0056912]
[1739164393310,4.01879043,2638.5,2638.4,0.0056912]
[1739164393613,4.58599043,2638.5,2638.4,0.0056912]
[1739164397808,4.65027861,2638.5,2638.4,0.0056912]
[1739164398412,4.58599043,2638.5,2638.4,0.0056912]
[1739164398613,1.1922,2638.6,2638.4,0.0056912]
[1739164398811,3.95753103,2638.5,2638.4,0.0056912]
[1739164401619,0.6038,2638.6,2638.4,0.0056912]
[1739164401923,0.6038,2638.6,2638.4,0.5746912]
[1739164404020,3.2078,2638.7,2638.4,0.5746912]
[1739164404223,0.58715442,2638.9,2638.6,1.85261893]
[1739164404418,0.00565442,2638.9,2638.6,1.85261893]
[1739164407919,0.0049865,2639.3,2638.6,5.81833893]
[1739164408122,0.0049865,2639.3,2639.2,1.85261893]
[1739164408834,3.2127865,2639.3,2639.2,1.85261893]
[1739164409216,3.2127865,2639.3,2638.9,1.85261893]
[1739164409417,0.5956,2639.2,2638.9,1.85261893]
[1739164410230,3.2078,2639.0,2638.9,1.85261893]
[1739164411224,0.5956,2639.2,2638.9,1.85261893]
[1739164411827,3.2078,2639.0,2638.9,1.85261893]
[1739164413226,3.2078,2639.0,2638.6,1.85261893]
[1739164413725,0.5771,2638.9,2638.6,1.85261893]
[1739164414824,3.2078,2638.7,2638.6,1.85261893]
[1739164415027,3.2078,2638.7,2638.4,0.5746912]
[1739164415323,0.593,2638.6,2638.4,0.5746912]
[1739164415523,0.593,2638.6,2638.5,1.85261893]
[1739164416630,3.2078,2638.7,2638.5,1.85261893]
[1739164418125,0.593,2639.0,2638.5,1.85261893]
[1739164418126,3.8008,2639.0,2638.5,1.85261893]
[1739164418325,3.2078,2639.0,2638.8,1.85261893]
[1739164421833,0.0049865,2639.3,2638.8,1.85261893]
[1739164422032,0.0049865,2639.3,2639.2,1.85261893]
[1739164422726,0.0049865,2639.3,2639.2,3.70523786]
[1739164422922,0.0049865,2639.3,2639.2,1.85261893]
[1739164425436,1.1591865,2639.3,2638.9,1.85261893]
[1739164425633,3.2078,2639.1,2638.9,1.85261893]
[1739164426234,3.98247294,2639.0,2638.5,2.44601893]
[1739164426539,3.98247294,2639.0,2638.8,1.85261893]